lending/lending_fUSD_20251125
["ID","MTS","AMOUNT","RATE_DAILY","PERIOD"]
[394872270,1764045056744,-889.66620373,0.00026738,2]
[394872271,1764045056753,-4627.56,0.000272,7]
[394872272,1764045056762,-622.96798445,0.00027263,2]
[394872273,1764045056772,-1455.02,0.00027397,2]
[394872274,1764045056782,-500.0,0.00027397,5]
[394872275,1764045056791,-300.0,0.00027397,2]
[394872276,1764045056800,-157.47934251,0.00027397,5]
[394872277,1764045056810,-500.0,0.00027397,5]
[394872278,1764045056819,-229.28,0.000274,7]
[394872279,1764045056828,-301.04,0.000274,7]
[394872280,1764045056837,-623.47,0.000274,2]
[394872281,1764045056846,-4448.47,0.00027671,2]
[394872282,1764045056855,-52759.54560199,0.00028,2]
[394872283,1764045056864,-217495.87270496,0.00028,2]
[394872284,1764045056873,-50390.93549236,0.00028,2]
[394872285,1764045056882,-150.0,0.00028011,2]
[394872286,1764045056891,-150.0,0.00028011,2]
[394872287,1764045056900,-150.0,0.00028011,2]
[394872288,1764045056909,-150.0,0.00028011,2]
[394872289,1764045056919,-150.0,0.00028011,2]
[394872290,1764045056930,-150.0,0.00028012,2]
[394872291,1764045056939,-150.0,0.00028012,2]
[394872292,1764045056948,-2000.0,0.000281,2]
[394872293,1764045056958,-8404.48161294,0.00028384,2]
[394872294,1764045056967,-1602.0,0.00028395,2]
[394872295,1764045056977,-823.0,0.00028395,2]
[394872296,1764045056987,-1257.0,0.00028395,2]
[394872297,1764045056996,-660.0,0.00028395,2]
[394872298,1764045057005,-908.0,0.00028395,2]
[394872299,1764045057014,-1192.0,0.00028395,2]
[394872300,1764045057024,-609.0,0.00028395,2]
[394872301,1764045057033,-1320.0,0.00028395,2]
[394872302,1764045057042,-9506.90192051,0.00028542,2]
[394872303,1764045057052,-500.0,0.00028785,120]
[394872304,1764045057062,-336.48,0.00029063,2]
[394872305,1764045057071,-1100.53,0.00029065,2]
[394872306,1764045057080,-150.0,0.00029065,2]
[394872307,1764045057089,-150.0,0.00029065,2]
[394872308,1764045057099,-169.75,0.00029065,2]
[394872309,1764045057110,-150.0,0.00029065,2]
[394872310,1764045057121,-177.64,0.00029065,2]
[394872311,1764045057130,-1211.61,0.00029065,2]
[394872312,1764045057140,-150.0,0.00029065,2]
[394872313,1764045057149,-150.0,0.00029065,2]
[394872314,1764045057158,-417.48,0.00029065,2]
[394872315,1764045057167,-169.75,0.00029065,2]
[394872316,1764045057176,-551.17,0.00029065,2]
[394872317,1764045057185,-150.0,0.00029065,2]
[394872318,1764045057194,-551.17,0.00029065,2]
[394872319,1764045057203,-1211.61,0.00029065,2]
[394872320,1764045057213,-342.87,0.00029065,2]
[394872321,1764045057222,-177.64,0.00029065,2]
[394872322,1764045057232,-150.0,0.00029065,2]
[394872323,1764045057243,-150.0,0.00029065,2]
[394872324,1764045057252,-150.0,0.00029065,2]
[394872325,1764045057261,-1211.61,0.00029065,2]
[394872326,1764045057270,-169.75,0.00029065,2]
[394872327,1764045057279,-150.0,0.00029065,2]
[394872328,1764045057288,-417.48,0.00029065,2]
[394872329,1764045057297,-150.0,0.00029065,2]
[394872330,1764045057306,-150.0,0.00029065,2]
[394872331,1764045057315,-1211.61,0.00029065,2]
[394872332,1764045057324,-177.6,0.00029065,2]
[394872333,1764045057333,-150.0,0.00029065,2]
[394872334,1764045057343,-150.0,0.00029065,2]
[394872335,1764045057352,-150.0,0.00029065,2]
[394872336,1764045057361,-417.48,0.00029065,2]
[394872337,1764045057370,-150.0,0.00029065,2]
[394872338,1764045057379,-169.75,0.00029065,2]
[394872339,1764045057388,-169.75,0.00029065,2]
[394872340,1764045057397,-150.0,0.00029065,2]
[394872341,1764045057406,-177.64,0.00029065,2]
[394872342,1764045057415,-150.0,0.00029065,2]
[394872343,1764045057424,-413.47,0.00029065,2]
[394872344,1764045057433,-150.0,0.00029065,2]
[394872345,1764045057442,-773.43,0.00029065,2]
[394872346,1764045057451,-1211.61,0.00029065,2]
[394872347,1764045057460,-280.39,0.00029065,2]
[394872348,1764045057469,-551.17,0.00029065,2]
[394872349,1764045057478,-551.04,0.00029065,2]
[394872350,1764045057487,-177.69,0.00029065,2]
[394872351,1764045057496,-1296.67,0.00029065,2]
[394872352,1764045057505,-150.0,0.00029065,2]
[394872353,1764045057514,-169.8,0.00029065,2]
[394872354,1764045057524,-151.77,0.00029065,2]
[394872355,1764045057533,-151.14,0.00029065,2]
[394872356,1764045057542,-152.2,0.00029065,2]
[394872357,1764045057551,-427.7,0.00029065,2]
[394872358,1764045057560,-565.91,0.00029065,2]
[394872359,1764045057569,-151.24,0.00029082,2]
[394872360,1764045057578,-237.04368353,0.00029376,2]
[394872361,1764045057587,-1211.90293586,0.00029396,2]
[394872362,1764045057596,-551.17,0.00029887,2]
[394872363,1764045057606,-150.0,0.00029887,2]
[394872364,1764045057614,-150.0,0.00029887,2]
[394872365,1764045057623,-154.66,0.00029887,2]
[394872366,1764045057632,-417.48,0.00029887,2]
[394872367,1764045057642,-150.0,0.00029887,2]
[394872368,1764045057650,-551.17,0.00029887,2]
[394872369,1764045057659,-177.64,0.00029887,2]
[394872370,1764045057668,-150.0,0.00029887,2]
[394872371,1764045057677,-300.0,0.00029887,2]
[394872372,1764045057687,-417.48,0.00029887,2]
[394872373,1764045057695,-169.71,0.00029887,2]
[394872374,1764045057704,-551.17,0.00029887,2]
[394872375,1764045057713,-177.64,0.00029887,2]
[394872376,1764045057722,-169.75,0.00029887,2]
[394872377,1764045057732,-152.86,0.00029887,2]
[394872378,1764045057741,-417.48,0.00029887,2]
[394872379,1764045057750,-169.75,0.00029887,2]
[394872380,1764045057759,-177.64,0.00029887,2]
[394872381,1764045057768,-551.17,0.00029887,2]
[394872382,1764045057777,-169.75,0.00029887,2]
[394872383,1764045057786,-177.64,0.00029887,2]
[394872384,1764045057794,-417.48,0.00029887,2]
[394872385,1764045057803,-169.52,0.00029887,2]
[394872386,1764045057812,-169.75,0.00029887,2]
[394872387,1764045057822,-417.48,0.00029887,2]
[394872388,1764045057831,-312.30793328,0.00029896,2]
[394872389,1764045057842,-78140.04767829,0.000299,2]
[394872390,1764045057851,-188.77397987,0.0003,120]
[394872391,1764045057860,-889.66620373,0.00030527,2]
[394872392,1764045057869,-229.28,0.000306,7]
[394872393,1764045057878,-152.0,0.00030656,3]
[394872394,1764045057887,-623.47,0.000307,2]
[394872395,1764045057896,-4627.56,0.000308,7]
[394872396,1764045057905,-78215.90950518,0.0003095,2]
[394872397,1764045057914,-8404.48161294,0.00030989,2]
[394872398,1764045057923,-200.0,0.00031,5]
[394872399,1764045057932,-150.0,0.00031011,2]
[394872400,1764045057941,-150.0,0.00031012,2]
[394872401,1764045057949,-500.0,0.00031133,120]
[394872402,1764045057958,-9506.90192051,0.00031176,2]
[394872403,1764045057967,-1602.0,0.00031395,2]
[394872404,1764045057977,-823.0,0.00031395,2]
[394872406,1764045057985,-1257.0,0.00031395,2]
[394872407,1764045057994,-660.0,0.00031395,2]
[394872408,1764045058003,-908.0,0.00031395,2]
[394872409,1764045058012,-1192.0,0.00031395,2]
[394872410,1764045058021,-609.0,0.00031395,2]
[394872411,1764045058030,-583.17126096,0.000315,120]
[394872412,1764045058039,-2000.0,0.000318,2]
[394872413,1764045058048,-250.0,0.00032,120]
[394872414,1764045058058,-161.95838318,0.00032867,2]
[394872415,1764045058067,-1000.0,0.00032877,10]
[394872416,1764045058076,-1000.0,0.00032877,10]
[394872417,1764045058085,-1000.0,0.00032877,10]
[394872418,1764045058095,-1000.0,0.00032877,10]
[394872419,1764045058104,-1000.0,0.00032877,10]
[394872420,1764045058116,-1000.0,0.00032877,10]
[394872421,1764045058125,-1000.0,0.00032877,10]
[394872422,1764045058134,-1000.0,0.00032877,10]
[394872423,1764045058143,-1000.0,0.00032877,10]
[394872424,1764045058153,-1000.0,0.00032877,10]
[394872425,1764045058163,-1000.0,0.00032877,10]
[394872426,1764045058172,-1000.0,0.00032877,10]
[394872427,1764045058181,-1000.0,0.00032877,10]
[394872428,1764045058190,-409.73594587,0.00032877,7]
[394872429,1764045058199,-302.3,0.00032986,2]
[394872430,1764045058209,-150.0,0.00033,14]
[394872431,1764045058218,-51048.50358537,0.00033,2]
[394872432,1764045058228,-152.0,0.00033114,4]
[394872433,1764045058238,-161.30607601,0.00033138,7]
[394872434,1764045058248,-661.94,0.00033165,2]
[394872435,1764045058257,-623.47,0.000332,2]
[394872436,1764045058266,-237.93791969,0.00033225,2]
[394872437,1764045058275,-512.845422,0.00033233,120]
[394872438,1764045058284,-1211.90293586,0.00033561,2]
[394872439,1764045058293,-8404.48161294,0.00033594,2]
[394872440,1764045058303,-9506.90192051,0.0003381,2]
[394872441,1764045058313,-300.0,0.00034,120]
[394872442,1764045058323,-150.0,0.00034012,2]
[394872443,1764045058332,-889.66620373,0.00034315,2]
[394872444,1764045058342,-1602.0,0.00034395,2]
[394872445,1764045058353,-823.0,0.00034395,2]
[394872446,1764045058362,-1257.0,0.00034395,2]
[394872447,1764045058372,-660.0,0.00034395,2]
[394872448,1764045058381,-908.0,0.00034395,2]
[394872449,1764045058391,-1192.0,0.00034395,2]
[394872450,1764045058402,-609.0,0.00034395,2]
[394872451,1764045058413,-19445.0,0.00034463,7]
[394872452,1764045058422,-229.28,0.000345,14]
[394872453,1764045058431,-500.0,0.00034521,2]
[394872454,1764045058440,-377.13272209,0.00035,120]
[394872455,1764045058449,-250.2296275,0.00035,10]
[394872456,1764045058458,-7459.4649297,0.00035,2]
[394872457,1764045058467,-200.0,0.00035,5]
[394872458,1764045058477,-150.0,0.00035,2]
[394872459,1764045058487,-2982.71219573,0.00035,2]
[394872460,1764045058499,-2500.0,0.000353,14]
[394872461,1764045058508,-2000.0,0.000355,2]
[394872462,1764045058517,-152.0,0.00035573,5]
[394872463,1764045058528,-245.06162563,0.00035616,120]
[394872464,1764045058538,-623.47,0.000357,2]
[394872465,1764045058548,-500.0,0.000358,30]
[394872466,1764045058557,-1753.392648,0.0003589,2]
[394872467,1764045058566,-199.0,0.0003589,7]
[394872468,1764045058576,-282.27715496,0.00035999,15]
[394872469,1764045058587,-1051.1,0.00036,2]
[394872470,1764045058600,-8404.48161294,0.00036199,2]
[394872471,1764045058610,-1402.46,0.00036247,2]
[394872472,1764045058620,-199.0,0.00036438,8]
[394872473,1764045058630,-9506.90192051,0.00036444,2]
[394872474,1764045058641,-229.28,0.000368,14]
[394872475,1764045058650,-150.0,0.00036888,7]
[394872476,1764045058764,-150.0,0.00036888,7]
[394872477,1764045058774,-150.0,0.00036888,7]
[394872478,1764045058785,-150.0,0.00036888,7]
[394872479,1764045058795,-150.0,0.00036888,7]
[394872480,1764045058804,-150.0,0.00036888,7]
[394872481,1764045058814,-150.0,0.00036888,7]
[394872482,1764045058823,-150.0,0.00036888,7]
[394872483,1764045058833,-223.80052242,0.00036888,7]
[394872484,1764045058842,-150.0,0.00036888,7]
[394872485,1764045058851,-150.0,0.00036888,7]
[394872486,1764045058861,-150.0,0.00036888,7]
[394872487,1764045058870,-263.82746842,0.00036888,7]
[394872488,1764045058879,-257.14956022,0.00036986,9]
[394872489,1764045058889,-500.0,0.00036986,120]
[394872490,1764045058899,-336.89,0.00036986,30]
[394872491,1764045058908,-160.0,0.00037,30]
[394872492,1764045058918,-160.0,0.00037,120]
[394872493,1764045058927,-60789.08574237,0.00037,2]
[394872494,1764045058936,-150.0,0.00037161,7]
[394872495,1764045058946,-940.64,0.00037205,2]
[394872496,1764045058955,-150.0,0.00037298,7]
[394872497,1764045058964,-150.0,0.00037298,7]
[394872498,1764045058973,-150.0,0.00037343,7]
[394872499,1764045058982,-1602.0,0.00037395,2]
[394872500,1764045058991,-823.0,0.00037395,2]
[394872501,1764045059000,-660.0,0.00037395,2]
[394872502,1764045059009,-908.0,0.00037395,2]
[394872503,1764045059018,-1192.0,0.00037395,2]
[394872504,1764045059027,-609.0,0.00037395,2]
[394872505,1764045059036,-150.0,0.00037434,7]
[394872506,1764045059045,-150.0,0.00037473,7]
[394872507,1764045059055,-150.0,0.00037707,7]
[394872508,1764045059064,-150.0,0.00037707,7]
[394872509,1764045059073,-150.0,0.00037707,7]
[394872510,1764045059082,-150.0,0.00037707,7]
[394872511,1764045059091,-1211.90293586,0.00037726,2]
[394872512,1764045059100,-150.0,0.00037798,7]
[394872513,1764045059112,-592.216284,0.00037894,2]
[394872514,1764045059122,-1032.0478,0.00037899,2]
[394872515,1764045059131,-150.0,0.00037912,7]
[394872516,1764045059140,-150.0,0.00037981,7]
[394872517,1764045059151,-617.0,0.00038,30]
[394872518,1764045059160,-1033.57,0.00038,120]
[394872519,1764045059170,-462.24971527,0.00038,30]
[394872520,1764045059180,-4627.56,0.00038,14]
[394872521,1764045059192,-152.0,0.00038031,6]
[394872522,1764045059202,-150.0,0.00038059,7]
[394872523,1764045059211,-889.66620373,0.00038104,2]
[394872524,1764045059221,-150.0,0.00038117,7]
[394872525,1764045059230,-150.0,0.00038117,7]
[394872526,1764045059239,-150.0,0.00038254,7]
[394872527,1764045059250,-150.0,0.00038254,7]
[394872528,1764045059261,-150.0,0.00038254,7]
[394872529,1764045059271,-150.0,0.00038254,7]
[394872530,1764045059280,-1512.6238091,0.00038304,30]
[394872531,1764045059289,-500.0,0.00038356,8]
[394872532,1764045059299,-500.0,0.00038356,8]
[394872533,1764045059308,-1683.381861,0.00038356,8]
[394872534,1764045059317,-234.976203,0.00038356,8]
[394872535,1764045059326,-586.235922,0.00038356,8]
[394872536,1764045059337,-278.569578,0.00038356,8]
[394872537,1764045059346,-748.457761,0.00038356,8]
[394872538,1764045059355,-500.0,0.00038356,8]
[394872539,1764045059364,-500.0,0.00038356,8]
[394872540,1764045059375,-500.0,0.00038356,8]
[394872541,1764045059384,-500.0,0.00038356,8]
[394872542,1764045059395,-500.0,0.00038356,8]
[394872543,1764045059405,-500.0,0.00038356,8]
[394872544,1764045059415,-500.0,0.00038356,8]
[394872545,1764045059425,-500.0,0.00038356,2]
[394872546,1764045059434,-500.0,0.00038356,8]
[394872547,1764045059443,-500.0,0.00038356,8]
[394872548,1764045059453,-500.0,0.00038356,8]
[394872549,1764045059462,-500.0,0.00038356,8]
[394872550,1764045059473,-402.17694233,0.00038356,8]
[394872551,1764045059482,-500.0,0.00038356,8]
[394872552,1764045059491,-500.0,0.00038356,8]
[394872553,1764045059501,-506.56969498,0.00038356,8]
[394872554,1764045059510,-500.0,0.00038356,8]
[394872555,1764045059520,-500.0,0.00038356,8]
[394872556,1764045059529,-500.0,0.00038356,8]
[394872557,1764045059538,-500.0,0.00038356,8]
[394872558,1764045059547,-500.0,0.00038356,8]
[394872559,1764045059557,-500.0,0.00038356,8]
[394872560,1764045059566,-500.0,0.00038356,8]
[394872561,1764045059575,-233.57176872,0.00038356,8]
[394872562,1764045059584,-500.0,0.00038356,8]
[394872563,1764045059593,-416.6446302,0.00038356,8]
[394872564,1764045059604,-500.0,0.00038356,8]
[394872565,1764045059614,-500.0,0.00038356,8]
[394872566,1764045059623,-500.0,0.00038356,8]
[394872567,1764045059632,-500.0,0.00038356,8]
[394872568,1764045059642,-500.0,0.00038356,8]
[394872569,1764045059652,-496.77819252,0.00038356,8]
[394872570,1764045059661,-224.46259865,0.00038356,8]
[394872571,1764045059670,-500.0,0.00038356,8]
[394872572,1764045059680,-500.0,0.00038356,8]
[394872573,1764045059689,-500.0,0.00038356,8]
[394872574,1764045059699,-500.0,0.00038356,8]
[394872575,1764045059708,-500.0,0.00038356,8]
[394872576,1764045059717,-508.62020119,0.00038356,8]
[394872577,1764045059726,-500.0,0.00038356,8]
[394872578,1764045059735,-500.0,0.00038356,8]
[394872579,1764045059745,-500.0,0.00038356,8]
[394872580,1764045059754,-500.0,0.00038356,8]
[394872581,1764045059763,-508.16925963,0.00038356,8]
[394872582,1764045059773,-500.0,0.00038356,8]
[394872583,1764045059782,-503.08781837,0.00038356,8]
[394872584,1764045059793,-516.22478563,0.00038356,8]
[394872585,1764045059803,-531.1423483,0.00038356,8]
[394872586,1764045059813,-507.94328786,0.00038356,8]
[394872587,1764045059823,-500.0,0.00038356,8]
[394872588,1764045059832,-503.59465963,0.00038356,8]
[394872589,1764045059841,-500.0,0.00038356,8]
[394872590,1764045059851,-500.0,0.00038356,8]
[394872591,1764045059861,-507.42068828,0.00038356,8]
[394872592,1764045059871,-500.0,0.00038356,8]
[394872593,1764045059880,-506.20411765,0.00038356,8]
[394872594,1764045059889,-511.44876979,0.00038356,8]
[394872595,1764045059898,-500.0,0.00038356,8]
[394872596,1764045059907,-531.19284065,0.00038356,8]
[394872597,1764045059916,-503.36570816,0.00038356,8]
[394872598,1764045059925,-507.56307772,0.00038356,8]
[394872599,1764045059934,-504.97378113,0.00038356,8]
[394872600,1764045059943,-500.0,0.00038356,8]
[394872601,1764045059952,-509.73386321,0.00038356,8]
[394872602,1764045059961,-508.29414956,0.00038356,8]
[394872603,1764045059970,-503.00858437,0.00038356,8]
[394872604,1764045059980,-500.0,0.00038356,8]
[394872605,1764045059988,-500.0,0.00038356,8]
[394872606,1764045059997,-500.0,0.00038356,8]
[394872607,1764045060006,-508.08577149,0.00038356,8]
[394872608,1764045060015,-507.27933572,0.00038356,8]
[394872609,1764045060024,-500.65395854,0.00038356,8]
[394872610,1764045060033,-506.04180947,0.00038356,8]
[394872611,1764045060043,-525.89843608,0.00038356,8]
[394872612,1764045060053,-500.0,0.00038356,8]
[394872613,1764045060062,-500.0,0.00038356,8]
[394872614,1764045060072,-500.0,0.00038356,8]
[394872615,1764045060082,-500.0,0.00038356,8]
[394872616,1764045060091,-500.0,0.00038356,8]
[394872617,1764045060100,-509.23506383,0.00038356,8]
[394872618,1764045060111,-500.0,0.00038356,8]
[394872619,1764045060121,-500.0,0.00038356,8]
[394872620,1764045060131,-500.0,0.00038356,8]
[394872621,1764045060140,-500.0,0.00038356,8]
[394872622,1764045060151,-504.61415886,0.00038356,8]
[394872623,1764045060160,-516.74594963,0.00038356,8]
[394872624,1764045060169,-511.44772149,0.00038356,8]
[394872625,1764045060178,-500.0,0.00038356,8]
[394872626,1764045060188,-500.0,0.00038356,8]
[394872627,1764045060198,-500.0,0.00038356,8]
[394872628,1764045060207,-500.0,0.00038356,8]
[394872629,1764045060216,-500.0,0.00038356,8]
[394872630,1764045060225,-500.0,0.00038356,8]
[394872631,1764045060235,-323.12892745,0.00038356,8]
[394872632,1764045060244,-500.0,0.00038356,8]
[394872633,1764045060253,-501.11740703,0.00038356,8]
[394872634,1764045060262,-515.3822573,0.00038356,8]
[394872635,1764045060273,-500.0,0.00038356,8]
[394872636,1764045060283,-403.6830667,0.00038356,8]
[394872637,1764045060292,-413.67648114,0.00038356,8]
[394872638,1764045060301,-505.56122103,0.00038356,8]
[394872639,1764045060311,-505.04249469,0.00038356,8]
[394872640,1764045060320,-1000.0,0.00038356,8]
[394872641,1764045060330,-505.02126421,0.00038356,8]
[394872642,1764045060339,-500.0,0.00038356,8]
[394872643,1764045060348,-428.5384611,0.00038356,8]
[394872644,1764045060357,-500.0,0.00038356,7]
[394872645,1764045060366,-519.69949228,0.00038356,8]
[394872646,1764045060375,-504.24600606,0.00038356,8]
[394872647,1764045060385,-506.1390559,0.00038356,8]
[394872648,1764045060395,-500.0,0.00038356,8]
[394872649,1764045060405,-493.73188626,0.00038356,8]
[394872650,1764045060414,-519.52955862,0.00038356,8]
[394872651,1764045060424,-500.0,0.00038356,8]
[394872652,1764045060433,-504.34831332,0.00038356,8]
[394872653,1764045060443,-500.0,0.00038356,8]
[394872654,1764045060453,-504.84796805,0.00038356,8]
[394872655,1764045060463,-500.0,0.00038356,8]
[394872656,1764045060472,-500.0,0.00038356,8]
[394872657,1764045060481,-525.65937116,0.00038356,8]
[394872658,1764045060491,-198.67661109,0.00038356,8]
[394872659,1764045060501,-513.84191769,0.00038356,8]
[394872660,1764045060511,-498.53164395,0.00038356,8]
[394872661,1764045060520,-500.0,0.00038356,8]
[394872662,1764045060529,-502.95871076,0.00038356,8]
[394872663,1764045060538,-506.18514498,0.00038356,8]
[394872664,1764045060547,-508.66085266,0.00038356,8]
[394872665,1764045060557,-502.11904026,0.00038356,8]
[394872666,1764045060566,-516.68124491,0.00038356,8]
[394872667,1764045060574,-513.876624,0.00038356,8]
[394872668,1764045060584,-500.0,0.00038356,8]
[394872669,1764045060593,-423.4826898,0.00038356,8]
[394872670,1764045060602,-416.05441104,0.00038356,8]
[394872671,1764045060612,-504.9994144,0.00038356,8]
[394872672,1764045060620,-524.94542234,0.00038356,8]
[394872673,1764045060630,-503.85553584,0.00038356,8]
[394872674,1764045060639,-505.06869041,0.00038356,8]
[394872675,1764045060649,-527.51339084,0.00038356,8]
[394872676,1764045060659,-500.0,0.00038356,8]
[394872677,1764045060668,-500.0,0.00038356,8]
[394872678,1764045060677,-349.45110965,0.00038356,8]
[394872679,1764045060686,-403.73914556,0.00038356,8]
[394872680,1764045060695,-500.0,0.00038356,8]
[394872681,1764045060704,-500.0,0.00038356,8]
[394872682,1764045060713,-501.06706042,0.00038356,8]
[394872683,1764045060723,-507.49964765,0.00038356,8]
[394872684,1764045060732,-421.08618064,0.00038356,8]
[394872685,1764045060742,-504.92567273,0.00038356,8]
[394872686,1764045060751,-507.48200239,0.00038356,8]
[394872687,1764045060760,-519.68284526,0.00038356,8]
[394872688,1764045060772,-518.9913498,0.00038356,8]
[394872689,1764045060782,-511.56928235,0.00038356,8]
[394872690,1764045060791,-500.0,0.00038356,8]
[394872691,1764045060800,-513.77792032,0.00038356,8]
[394872692,1764045060809,-500.0,0.00038356,8]
[394872693,1764045060818,-500.0,0.00038356,8]
[394872694,1764045060827,-500.0,0.00038356,8]
[394872695,1764045060836,-500.0,0.00038356,8]
[394872696,1764045060845,-500.0,0.00038356,8]
[394872697,1764045060855,-422.99723038,0.00038356,8]
[394872698,1764045060864,-500.0,0.00038356,8]
[394872699,1764045060873,-507.09138069,0.00038356,8]
[394872700,1764045060882,-500.0,0.00038356,8]
[394872701,1764045060891,-506.21682629,0.00038356,8]
[394872702,1764045060901,-500.0,0.00038356,8]
[394872703,1764045060910,-474.87150879,0.00038356,8]
[394872704,1764045061023,-422.82645672,0.00038356,8]
[394872705,1764045061033,-500.0,0.00038356,8]
[394872706,1764045061042,-623.95813205,0.00038356,8]
[394872707,1764045061051,-492.84511937,0.00038356,8]
[394872708,1764045061060,-513.19465497,0.00038356,8]
[394872709,1764045061070,-500.0,0.00038356,8]
[394872710,1764045061079,-500.0,0.00038356,8]
[394872711,1764045061088,-514.59497568,0.00038356,8]
[394872712,1764045061098,-529.55631387,0.00038356,8]
[394872713,1764045061107,-503.98148856,0.00038356,8]
[394872714,1764045061120,-500.0,0.00038356,8]
[394872715,1764045061130,-527.97178451,0.00038356,8]
[394872716,1764045061140,-506.62078975,0.00038356,8]
[394872717,1764045061149,-429.04409942,0.00038356,8]
[394872718,1764045061160,-511.95514516,0.00038356,8]
[394872719,1764045061170,-503.24401532,0.00038356,8]
[394872720,1764045061179,-500.0,0.00038356,8]
[394872721,1764045061188,-503.25519665,0.00038356,8]
[394872722,1764045061198,-500.0,0.00038356,8]
[394872723,1764045061206,-507.23025282,0.00038356,8]
[394872724,1764045061216,-500.0,0.00038356,8]
[394872725,1764045061225,-504.61048297,0.00038356,8]
[394872726,1764045061234,-511.64755324,0.00038356,8]
[394872727,1764045061243,-500.0,0.00038356,8]
[394872728,1764045061252,-507.64483471,0.00038356,8]
[394872729,1764045061261,-528.35969957,0.00038356,8]
[394872730,1764045061271,-530.53852077,0.00038356,8]
[394872731,1764045061280,-413.85051532,0.00038356,8]
[394872732,1764045061290,-410.57711554,0.00038356,8]
[394872733,1764045061299,-517.33512099,0.00038356,8]
[394872734,1764045061308,-500.0,0.00038356,8]
[394872735,1764045061317,-500.0,0.00038356,8]
[394872736,1764045061326,-500.0,0.00038356,8]
[394872737,1764045061335,-500.0,0.00038356,8]
[394872738,1764045061344,-500.0,0.00038356,8]
[394872739,1764045061353,-500.0,0.00038356,8]
[394872740,1764045061363,-500.0,0.00038356,8]
[394872741,1764045061372,-491.38865805,0.00038356,8]
[394872742,1764045061382,-500.0,0.00038356,8]
[394872743,1764045061391,-500.0,0.00038356,8]
[394872744,1764045061400,-500.0,0.00038356,8]
[394872745,1764045061408,-506.29027783,0.00038356,8]
[394872746,1764045061417,-500.0,0.00038356,8]
[394872747,1764045061426,-500.0,0.00038356,8]
[394872748,1764045061436,-418.90658033,0.00038356,8]
[394872749,1764045061445,-500.0,0.00038356,8]
[394872750,1764045061455,-500.0,0.00038356,8]
[394872751,1764045061466,-500.0,0.00038356,8]
[394872752,1764045061476,-500.0,0.00038356,8]
[394872753,1764045061485,-500.0,0.00038356,8]
[394872754,1764045061495,-500.0,0.00038356,8]
[394872755,1764045061504,-500.0,0.00038356,8]
[394872756,1764045061515,-500.0,0.00038356,8]
[394872757,1764045061526,-507.69823368,0.00038356,8]
[394872758,1764045061535,-635.89441474,0.00038356,8]
[394872759,1764045061545,-500.0,0.00038356,8]
[394872760,1764045061555,-500.0,0.00038356,8]
[394872761,1764045061565,-500.0,0.00038356,8]
[394872762,1764045061574,-500.0,0.00038356,8]
[394872763,1764045061583,-500.0,0.00038356,8]
[394872764,1764045061593,-500.0,0.00038356,8]
[394872765,1764045061602,-500.0,0.00038356,8]
[394872766,1764045061611,-500.0,0.00038356,8]
[394872767,1764045061619,-500.0,0.00038356,8]
[394872768,1764045061628,-500.0,0.00038356,8]
[394872769,1764045061637,-500.0,0.00038356,8]
[394872770,1764045061646,-500.0,0.00038356,8]